Workbook

Sheet Datos del del proyecto
R1: VERSIÓN 2.0
A2: MENÚ | F2: FORMATO PARA LA PRESENTACIÓN DE PROYECTOS AMBIENTALES AÑO 2025
C4: 1. DATOS GENERALES DEL PROYECTO
D7: Nombre de la empresa
D8: Dirección de la sede
D14: Nombre del proyecto
D15: Fecha de inicio | H15: DD/MM/AAAA | K15: Fecha de terminación | P15: DD/MM/AAAA | R15: =DATEDIF(H15,P15,"M") -> 
D16: Seleccione el componente ambiental
D17: Descripción del proyecto:
D18: Objetivo general
D19: Objetivos específicos | H19: 1.
H20: 2.
H21: 3.
D22: Metas | H22: 1.
H23: 2.
H24: 3.
C25: CRONOGRAMA
D26: Objetivo especifico | H26: Actividades | K26: Fecha inicio DD/MM/AAAA | M26: Fecha final DD/MM/AAAA | O26: Nombre de la evidencia que soportará la actividad
D27: =+H19 -> 1.
D30: =+H20 -> 2.
D33: =+H21 -> 3.

Sheet LISTA DESPLEGABLE (hidden)
A1: COMPONENTE
A2: Uso eficiente de agua
A3: Uso eficiente de energía
A4: Disminución de residuos peligrosos
A5: Uso eficiente de materiales
A6: Reducción de emisiones
A7: Uso eficiente de residuos orgánicos
A8: Uso eficiente de residuos aprovechables
A9: Uso eficiente de residuos de construcción y demolición
A12: UND DE MEDIDA
A14: m³
A15: kWh
A16: kg
A17: Ton
A18: Ton CO₂eq/año
A19: Unidades
A20: L
A21: Galones

Sheet Línea Base y beneficios proy
T1: VERSIÓN 2.0
A2: MENÚ | F2: FORMATO PARA LA PRESENTACIÓN DE PROYECTOS AMBIENTALES AÑO 2025
D8: Nota: La hoja se encuentra protegida en algunas celdas. Por favor, registre manulamente los datos de su organización en los campos de color verde claro.
C9: 2. LINEA BASE Y BENEFICIOS DEL PROYECTO PRINCIPAL
D11: Componente ambiental | I11: Unidad | L11: Mes de inicio de la línea base
I12: m3 | L12: MM/AAAA
D14: Línea Base | E14: Mes 1 | F14: Mes 2 | G14: Mes 3 | H14: Mes 4 | I14: Mes 5 | J14: Mes 6 | K14: Mes 7 | L14: Mes 8 | M14: Mes 9 | N14: Mes 10 | O14: Mes 11 | P14: Mes 12 | Q14: Total | R14: Promedio mes | S14: Mín. | T14: Máx.
D15: Consumo o generación | Q15: =SUM(TablaLineaBase[[#This Row],[Mes 1]:[Mes 12]]) -> 0 | R15: =AVERAGE(TablaLineaBase[[#This Row],[Mes 1]:[Mes 12]]) ->  | S15: =MIN(TablaLineaBase[[#This Row],[Mes 1]:[Mes 12]]) -> 0 | T15: =MAX(TablaLineaBase[[#This Row],[Mes 1]:[Mes 12]]) -> 0
D16: Costo | Q16: =SUM(TablaLineaBase[[#This Row],[Mes 1]:[Mes 12]]) -> 0 | R16: =AVERAGE(TablaLineaBase[[#This Row],[Mes 1]:[Mes 12]]) ->  | S16: =MIN(TablaLineaBase[[#This Row],[Mes 1]:[Mes 12]]) -> 0 | T16: =MAX(TablaLineaBase[[#This Row],[Mes 1]:[Mes 12]]) -> 0
D19: Beneficio proyectado | E19: Mensual proyectado | F19: No de meses proyectados | G19: Beneficio total
D20: Ambiental (Consumo o generación) | G20: =+TablaBeneProyectado[[#This Row],[Mensual proyectado]]*TablaBeneProyectado[[#This Row],[No de meses proyectados]] -> 0
D21: Economico | G21: =+TablaBeneProyectado[[#This Row],[Mensual proyectado]]*TablaBeneProyectado[[#This Row],[No de meses proyectados]] -> 0
C24: CÁLCULOS COMPLEMENTARIOS PARA ESTIMAR LA LÍNEA BASE Y LOS BENEFICIOS PROYECTADOS

Sheet Resultados del proyecto (hidden)
E2: FORMATO PARA LA PRESENTACIÓN DE PROYECTOS AMBIENTALES AÑO 2025
B4: 9. RESULTADOS DEL PROYECTO
C13: =+#REF! ->  | H13: =+#REF! -> 
C15: Columna1 | D15: Mes 1 | E15: Mes 2 | F15: Mes 3 | G15: Mes 4 | H15: Mes 5 | I15: Mes 6 | J15: PROMEDIO
C16: Línea base | D16: =+#REF! ->  | E16: =+#REF! ->  | F16: =+#REF! ->  | G16: =+#REF! ->  | H16: =+#REF! ->  | I16: =+#REF! ->  | J16: =AVERAGE(Tabla4[[#This Row],[Mes 1]:[Mes 6]]) -> 
C17: Meta | D17: 259.6 | E17: 259.6 | F17: 259.6 | G17: 259.6 | H17: 259.6 | I17: 259.6 | J17: =AVERAGE(Tabla4[[#This Row],[Mes 1]:[Mes 6]]) -> 259.6
C18: Resultado consumo o generación actual | D18: 1100 | E18: 1000 | F18: 1110 | G18: 1215 | H18: 1423 | I18: 1400 | J18: =AVERAGE(Tabla4[[#This Row],[Mes 1]:[Mes 6]]) -> 1208
C19: Reducción real | D19: =+D16-D18 ->  | J19: =AVERAGE(Tabla4[[#This Row],[Mes 1]:[Mes 6]]) -> 
C20: % de cumplimiento de la meta | D20: =(D19/D17) ->  | E20: =(E19/E17) ->  | J20: =AVERAGE(Tabla4[[#This Row],[Mes 1]:[Mes 6]]) -> 
J21: =AVERAGE(J16:J20) -> 
C22: Columna1 | D22: Mes 1 | E22: Mes 2 | F22: Mes 3 | G22: Mes 4 | H22: Mes 5 | I22: Mes 6 | J22: TOTAL
C23: Resultado consumo o generación actual | D23: 1100 | E23: 1000 | F23: 1110 | G23: 1215 | H23: 1423 | I23: 1400
C24: Unidad de producción | D24: 50 | E24: 50 | F24: 50 | G24: 50 | H24: 50 | I24: 50
C25: Costo | D25: =500000/$D$23 -> 454.5454545 | E25: =500000/$E$23 -> 500 | F25: =500000/$F$23 -> 450.4504505 | G25: =500000/$G$23 -> 411.5226337 | H25: =500000/$H$23 -> 351.3703443 | I25: =500000/$I$23 -> 357.1428571
C26: Relación índice de consumo después del proyecto ICDP | D26: =D24/D23 -> 0.04545454545 | E26: 0.05 | F26: 0.04504504505 | G26: 0.04115226337 | H26: 0.03513703443 | I26: 0.03571428571
C27: %cumplimiento de mejora | D27: =(#REF!-D26)/#REF! ->  | E27: =(#REF!-E26)/#REF! ->  | F27: =(#REF!-F26)/#REF! ->  | G27: =(#REF!-G26)/#REF! ->  | H27: =(#REF!-H26)/#REF! ->  | I27: =(#REF!-I26)/#REF! ->  | L27: Componente beneficio principal | N27: Resultado Ambiental (mes) | P27: Resultado económico (mes/$)
C28: Ahorro total | D28: =+D23*D25 -> 500000 | E28: =E25*E23 -> 500000 | F28: =F25*F23 -> 500000 | G28: 500000 | H28: 500000 | I28: 500000 | L28: =+C13 ->  | P28: =+N28*$K$21 -> 0
C41: Columna1 | D41: Mes 1 | E41: Mes 2 | F41: Mes 3 | G41: Mes 4 | H41: Mes 5 | I41: Mes 6 | J41: TOTAL
C42: Línea base | D42: =+#REF! ->  | E42: =+#REF! ->  | F42: =+#REF! ->  | G42: =+#REF! ->  | H42: =+#REF! ->  | I42: =+#REF! -> 
C43: Meta
C44: Resultado consumo o generación actual
C45: Reducción real
C46: % de cumplimiento de la meta
C48: =+#REF! ->  | H48: =+#REF! -> 
C50: Columna1 | D50: Mes 1 | E50: Mes 2 | F50: Mes 3 | G50: Mes 4 | H50: Mes 5 | I50: Mes 6 | J50: TOTAL
C51: Resultado consumo o generación actual
C52: Unidad de producción
C53: Costo
C54: Relación índice de consumo después del proyecto | L54: Componente beneficio principal | N54: Resultado Ambiental (mes) | P54: Resultado económico (mes/$)
C55: %cumplimiento de mejora | L55: =+C48 ->  | P55: =+N55*$K$21 -> 0
C56: Ahorro total
B72: 10. REGISTRO FOTOGRÁFICO

Sheet Costos del proyecto
R1: VERSIÓN 2.0
A2: MENÚ | F2: FORMATO PARA LA PRESENTACIÓN DE PROYECTOS AMBIENTALES AÑO 2025
C4: 3. COSTOS DEL PROYECTO
D11: Nota: La hoja se encuentra protegida en algunas celdas. Por favor, registre manulamente los datos de su organización en los campos de color verde claro.
D12: Detalle de inversión | H12: Unidad de medida | J12: Valor de la unidad de medida | L12: Cantidad | M12: Total
D13: Equipos y herramientas. Ejemplo: sensores, medidores | H13: Unidad | M13: =J13*L13 -> 0
D14: Instalaciones iniciales. Ejemplo: instalación de tuberías | H14: Unidad | M14: =J14*L14 -> 0
D15: Software y licencias. Ejemplo: licencias de análisis | H15: Unidad | M15: 0
D16: Consultoría técnica. Ejemplo: Estudios de viabilidad | H16: Unidad | M16: 0
D17: Otros | M17: 0
J18: Sub total Inversión | M18: =SUM(M13:M17) -> 0
D20: Costos operativos del mes | H20: Unidad de medida | J20: Valor de la unidad de medida | L20: Cantidad
D21: Mano de obra. Ejemplo: técnicos, supervisores | H21: Horas hombre | M21: =J21*L21 -> 0
D22: Mantenimiento. Ejemplo: calibración de sensores o equipos | H22: Servicio | M22: =J22*L22 -> 0
D23: Suministros y consumibles. Ejemplo: filtros, herramientas | H23: Unidad | M23: 0
D24: Energía eléctrica. Ejemplo: operación de bombas | H24: kwh | M24: 0
D25: Transporte. Ejemplo: logistica para el traslado de personal o materiales | H25: Viaje | M25: 0
D26: Monitoreo y reportes. Ejemplo: Supervisiòn y generaciòn de informes | H26: Informes | M26: 0
D27: Otros | M27: 0
J28: Costo operativo mensual | M28: =SUM(M21:M27) -> 0
I29: Tiempo duración del proyecto en meses | M29: ='Datos del del proyecto'!R15 -> 
I30: Costo operativo total | M30: =+M28*$M$29 -> 
J31: Total inversión | M31: =+M30+$M$18 -> 
H32: Tiempo estimado para el retorno de la inversión en meses | M32: =M31/('Línea Base y beneficios proy'!E21+'Línea Base y beneficios pro (2)'!E22+'Línea Base y beneficios pro (3)'!E22) -> 

Sheet Resultados del proyecto
R1: VERSIÓN 2.0
A2: MENÚ | G2: FORMATO PARA LA PRESENTACIÓN DE PROYECTOS AMBIENTALES AÑO 2025
C4: 4. RESULTADOS DEL PROYECTO PRINCIPAL
D9: Nota: La hoja se encuentra protegida en algunas celdas. Por favor, registre manulamente los datos de su organización en los campos de color verde claro.
D11: Componente ambiental | H11: Unidad | K11: Mes de inicio de resultados
D12: =+'Línea Base y beneficios proy'!D12:$H$12 -> 0 | H12: =+'Línea Base y beneficios proy'!$I$12 -> m3 | K12: 2025-08-01
D14: Ambiental | E14: Mes 1 | F14: Mes 2 | G14: Mes 3 | H14: Mes 4 | I14: Mes 5 | J14: Mes 6 | K14: Mes 7 | L14: Mes 8 | M14: Mes 9 | N14: Mes 10 | O14: Mes 11 | P14: Mes 12 | Q14: Total | R14: Promedio
D15: Meta | E15: =+'Línea Base y beneficios proy'!$E$20 -> 0 | F15: =+'Línea Base y beneficios proy'!$E$20 -> 0 | G15: =+'Línea Base y beneficios proy'!$E$20 -> 0 | H15: =+'Línea Base y beneficios proy'!$E$20 -> 0 | I15: =+'Línea Base y beneficios proy'!$E$20 -> 0 | J15: =+'Línea Base y beneficios proy'!$E$20 -> 0 | K15: =+'Línea Base y beneficios proy'!$E$20 -> 0 | L15: =+'Línea Base y beneficios proy'!$E$20 -> 0 | M15: =+'Línea Base y beneficios proy'!$E$20 -> 0 | N15: =+'Línea Base y beneficios proy'!$E$20 -> 0 | O15: =+'Línea Base y beneficios proy'!$E$20 -> 0 | P15: =+'Línea Base y beneficios proy'!$E$20 -> 0 | Q15: =SUM(Tabla10[[#This Row],[Mes 1]:[Mes 12]]) -> 0 | R15: =AVERAGE(Tabla10[[#This Row],[Mes 1]:[Mes 12]]) -> 0
D16: Resultado consumo o generación | R16: =AVERAGE(Tabla10[[#This Row],[Mes 1]:[Mes 12]]) -> 
D18: Resultados concluyentes del proyecto
D20: % de cumplimiento promedio meta | E20: % de mejoramiento promedio
D21: =R16*100/R15 ->  | E21: =R16*100/'Línea Base y beneficios proy'!R15 -> 
D23: Economico | E23: Mes 1 | F23: Mes 2 | G23: Mes 3 | H23: Mes 4 | I23: Mes 5 | J23: Mes 6 | K23: Mes 7 | L23: Mes 8 | M23: Mes 9 | N23: Mes 10 | O23: Mes 11 | P23: Mes 12 | Q23: Total | R23: Promedio
D24: Meta | E24: =+'Línea Base y beneficios proy'!$E$21 -> 0 | F24: =+'Línea Base y beneficios proy'!$E$21 -> 0 | G24: =+'Línea Base y beneficios proy'!$E$21 -> 0 | H24: =+'Línea Base y beneficios proy'!$E$21 -> 0 | I24: =+'Línea Base y beneficios proy'!$E$21 -> 0 | J24: =+'Línea Base y beneficios proy'!$E$21 -> 0 | K24: =+'Línea Base y beneficios proy'!$E$21 -> 0 | L24: =+'Línea Base y beneficios proy'!$E$21 -> 0 | M24: =+'Línea Base y beneficios proy'!$E$21 -> 0 | N24: =+'Línea Base y beneficios proy'!$E$21 -> 0 | O24: =+'Línea Base y beneficios proy'!$E$21 -> 0 | P24: =+'Línea Base y beneficios proy'!$E$21 -> 0 | Q24: =SUM(Tabla479613[[#This Row],[Mes 1]:[Mes 12]]) -> 0 | R24: =AVERAGE(Tabla479613[[#This Row],[Mes 1]:[Mes 12]]) -> 0
D25: Beneficio obtenido | E25: 0 | F25: 0 | G25: 0 | H25: 0 | I25: 0 | J25: 0 | K25: 0 | L25: 0 | M25: 0 | N25: 0 | O25: 0 | P25: 0 | Q25: =SUM(Tabla479613[[#This Row],[Mes 1]:[Mes 12]]) -> 0 | R25: =AVERAGE(Tabla479613[[#This Row],[Mes 1]:[Mes 12]]) -> 0
D35: EVIDENCIAS DE IMPLEMENTACIÓN
V72: OBSERVACIONES TUTOR

Sheet Línea Base y beneficios pro (2)
T1: VERSIÓN 2.0
A2: MENÚ | F2: FORMATO PARA LA PRESENTACIÓN DE PROYECTOS AMBIENTALES AÑO 2025
D8: Nota: La hoja se encuentra protegida en algunas celdas. Por favor, registre manulamente los datos de su organización en los campos de color verde claro.
C9: 5. LINEA BASE Y BENEFICIOS COMPLEMENTARIOS DEL PROYECTO 1
D11: Componente ambiental | I11: Unidad | L11: Mes de inicio de la linea base
D14: Línea Base | E14: Mes 1 | F14: Mes 2 | G14: Mes 3 | H14: Mes 4 | I14: Mes 5 | J14: Mes 6 | K14: Mes 7 | L14: Mes 8 | M14: Mes 9 | N14: Mes 10 | O14: Mes 11 | P14: Mes 12 | Q14: Total | R14: Promedio mes | S14: Mín. | T14: Máx.
D15: Consumo o generación | Q15: =SUM(TablaLineaBase6[[#This Row],[Mes 1]:[Mes 12]]) -> 0 | R15: =AVERAGE(TablaLineaBase6[[#This Row],[Mes 1]:[Mes 12]]) ->  | S15: =MIN(TablaLineaBase6[[#This Row],[Mes 1]:[Mes 12]]) -> 0 | T15: =MAX(TablaLineaBase6[[#This Row],[Mes 1]:[Mes 12]]) -> 0
D16: Costo | Q16: =SUM(TablaLineaBase6[[#This Row],[Mes 1]:[Mes 12]]) -> 0 | R16: =AVERAGE(TablaLineaBase6[[#This Row],[Mes 1]:[Mes 12]]) ->  | S16: =MIN(TablaLineaBase6[[#This Row],[Mes 1]:[Mes 12]]) -> 0 | T16: =MAX(TablaLineaBase6[[#This Row],[Mes 1]:[Mes 12]]) -> 0
D20: Beneficio proyectado | E20: Mensual proyectado | F20: No de meses proyectados | G20: Beneficio total
D21: Ambiental (Consumo o generación) | G21: =+TablaBeneProyectado8[[#This Row],[Mensual proyectado]]*TablaBeneProyectado8[[#This Row],[No de meses proyectados]] -> 0
D22: Economico | G22: =+TablaBeneProyectado8[[#This Row],[Mensual proyectado]]*TablaBeneProyectado8[[#This Row],[No de meses proyectados]] -> 0
C24: CÁLCULOS COMPLEMENTARIOS PARA ESTIMAR LA LÍNEA BASE Y LOS BENEFICIOS PROYECTADOS

Sheet Resultados del proyecto (2)
R1: VERSIÓN 2.0
A2: MENÚ | G2: FORMATO PARA LA PRESENTACIÓN DE PROYECTOS AMBIENTALES AÑO 2025
C4: 6. RESULTADOS COMPLEMENTARIOS DEL PROYECTO 1
D9: Nota: La hoja se encuentra protegida en algunas celdas. Por favor, registre manulamente los datos de su organización en los campos de color verde claro.
D11: Componente ambiental | H11: Unidad | K11: Mes de inicio de resultados
D12: =+'Línea Base y beneficios pro (2)'!D12:H12 -> 0 | H12: =+'Línea Base y beneficios pro (2)'!I12 -> 0 | K12: MM/AAAA
D14: Ambiental | E14: Mes 1 | F14: Mes 2 | G14: Mes 3 | H14: Mes 4 | I14: Mes 5 | J14: Mes 6 | K14: Mes 7 | L14: Mes 8 | M14: Mes 9 | N14: Mes 10 | O14: Mes 11 | P14: Mes 12 | Q14: Total | R14: Promedio
D15: Meta | E15: =+'Línea Base y beneficios pro (2)'!$E$21 -> 0 | F15: =+'Línea Base y beneficios pro (2)'!$E$21 -> 0 | G15: =+'Línea Base y beneficios pro (2)'!$E$21 -> 0 | H15: =+'Línea Base y beneficios pro (2)'!$E$21 -> 0 | I15: =+'Línea Base y beneficios pro (2)'!$E$21 -> 0 | J15: =+'Línea Base y beneficios pro (2)'!$E$21 -> 0 | K15: =+'Línea Base y beneficios pro (2)'!$E$21 -> 0 | L15: =+'Línea Base y beneficios pro (2)'!$E$21 -> 0 | M15: =+'Línea Base y beneficios pro (2)'!$E$21 -> 0 | N15: =+'Línea Base y beneficios pro (2)'!$E$21 -> 0 | O15: =+'Línea Base y beneficios pro (2)'!$E$21 -> 0 | P15: =+'Línea Base y beneficios pro (2)'!$E$21 -> 0 | Q15: =SUM(Tabla1015[[#This Row],[Mes 1]:[Mes 12]]) -> 0 | R15: =AVERAGE(Tabla1015[[#This Row],[Mes 1]:[Mes 12]]) -> 0
D16: Resultado consumo o generación | Q16: =SUM(Tabla1015[[#This Row],[Mes 1]:[Mes 12]]) -> 0 | R16: =AVERAGE(Tabla1015[[#This Row],[Mes 1]:[Mes 12]]) -> 
D18: Resultados concluyentes del proyecto
D20: % de cumplimiento promedio meta | E20: % de mejoramiento promedio
D21: =R16*100/R15 ->  | E21: =R16*100/'Línea Base y beneficios pro (2)'!R15 -> 
D23: Economico | E23: Mes 1 | F23: Mes 2 | G23: Mes 3 | H23: Mes 4 | I23: Mes 5 | J23: Mes 6 | K23: Mes 7 | L23: Mes 8 | M23: Mes 9 | N23: Mes 10 | O23: Mes 11 | P23: Mes 12 | Q23: Total | R23: Promedio
D24: Meta | E24: =+'Línea Base y beneficios pro (2)'!$E$22 -> 0 | F24: =+'Línea Base y beneficios pro (2)'!$E$22 -> 0 | G24: =+'Línea Base y beneficios pro (2)'!$E$22 -> 0 | H24: =+'Línea Base y beneficios pro (2)'!$E$22 -> 0 | I24: =+'Línea Base y beneficios pro (2)'!$E$22 -> 0 | J24: =+'Línea Base y beneficios pro (2)'!$E$22 -> 0 | K24: =+'Línea Base y beneficios pro (2)'!$E$22 -> 0 | L24: =+'Línea Base y beneficios pro (2)'!$E$22 -> 0 | M24: =+'Línea Base y beneficios pro (2)'!$E$22 -> 0 | N24: =+'Línea Base y beneficios pro (2)'!$E$22 -> 0 | O24: =+'Línea Base y beneficios pro (2)'!$E$22 -> 0 | P24: =+'Línea Base y beneficios pro (2)'!$E$22 -> 0 | Q24: =SUM(Tabla47961314[[#This Row],[Mes 1]:[Mes 12]]) -> 0 | R24: =AVERAGE(Tabla47961314[[#This Row],[Mes 1]:[Mes 12]]) -> 0
D25: Beneficio obtenido | E25: 0 | F25: 0 | G25: 0 | H25: 0 | I25: 0 | J25: 0 | K25: 0 | L25: 0 | M25: 0 | N25: 0 | O25: 0 | P25: 0 | Q25: =SUM(Tabla47961314[[#This Row],[Mes 1]:[Mes 12]]) -> 0 | R25: =AVERAGE(Tabla47961314[[#This Row],[Mes 1]:[Mes 12]]) -> 0
D32: EVIDENCIAS DE IMPLEMENTACIÓN
V69: OBSERVACIONES TUTOR

Sheet Línea Base y beneficios pro (3)
T1: VERSIÓN 2.0
A2: MENÚ | F2: FORMATO PARA LA PRESENTACIÓN DE PROYECTOS AMBIENTALES AÑO 2025
D8: Nota: La hoja se encuentra protegida en algunas celdas. Por favor, registre manulamente los datos de su organización en los campos de color verde claro.
C9: 7. LINEA BASE Y BENEFICIOS COMPLEMENTARIOS DEL PROYECTO 2
D11: Componente ambiental | I11: Unidad | L11: Mes de inicio de la linea base
D14: Línea Base | E14: Mes 1 | F14: Mes 2 | G14: Mes 3 | H14: Mes 4 | I14: Mes 5 | J14: Mes 6 | K14: Mes 7 | L14: Mes 8 | M14: Mes 9 | N14: Mes 10 | O14: Mes 11 | P14: Mes 12 | Q14: Total | R14: Promedio mes | S14: Mín. | T14: Máx.
D15: Consumo o generación | Q15: =SUM(TablaLineaBase64[[#This Row],[Mes 1]:[Mes 12]]) -> 0 | R15: =AVERAGE(TablaLineaBase64[[#This Row],[Mes 1]:[Mes 12]]) ->  | S15: =MIN(TablaLineaBase64[[#This Row],[Mes 1]:[Mes 12]]) -> 0 | T15: =MAX(TablaLineaBase64[[#This Row],[Mes 1]:[Mes 12]]) -> 0
D16: Costo | Q16: =SUM(TablaLineaBase64[[#This Row],[Mes 1]:[Mes 12]]) -> 0 | R16: =AVERAGE(TablaLineaBase64[[#This Row],[Mes 1]:[Mes 12]]) ->  | S16: =MIN(TablaLineaBase64[[#This Row],[Mes 1]:[Mes 12]]) -> 0 | T16: =MAX(TablaLineaBase64[[#This Row],[Mes 1]:[Mes 12]]) -> 0
D20: Beneficio proyectado | E20: Mensual proyectado | F20: No de meses proyectados | G20: Beneficio total
D21: Ambiental (Consumo o generación) | G21: =+TablaBeneProyectado817[[#This Row],[Mensual proyectado]]*TablaBeneProyectado817[[#This Row],[No de meses proyectados]] -> 0
D22: Economico | G22: =+TablaBeneProyectado817[[#This Row],[Mensual proyectado]]*TablaBeneProyectado817[[#This Row],[No de meses proyectados]] -> 0
C24: CÁLCULOS COMPLEMENTARIOS PARA ESTIMAR LA LÍNEA BASE Y LOS BENEFICIOS PROYECTADOS

Sheet Resultados del proyecto (3)
R1: VERSIÓN 2.0
A2: MENÚ | G2: FORMATO PARA LA PRESENTACIÓN DE PROYECTOS AMBIENTALES AÑO 2025
C4: 8. RESULTADOS COMPLEMENTARIOS DEL PROYECTO 2
D9: Nota: La hoja se encuentra protegida en algunas celdas. Por favor, registre manulamente los datos de su organización en los campos de color verde claro.
D11: Componente ambiental | H11: Unidad | K11: Mes de inicio de resultados
D12: =+'Línea Base y beneficios pro (3)'!D12:H12 -> 0 | H12: =+'Línea Base y beneficios pro (3)'!I12 -> 0 | K12: MM/AAAA
D14: Ambiental | E14: Mes 1 | F14: Mes 2 | G14: Mes 3 | H14: Mes 4 | I14: Mes 5 | J14: Mes 6 | K14: Mes 7 | L14: Mes 8 | M14: Mes 9 | N14: Mes 10 | O14: Mes 11 | P14: Mes 12 | Q14: Total | R14: Promedio
D15: Meta | E15: =+'Línea Base y beneficios pro (3)'!$E$21 -> 0 | F15: =+'Línea Base y beneficios pro (3)'!$E$21 -> 0 | G15: =+'Línea Base y beneficios pro (3)'!$E$21 -> 0 | H15: =+'Línea Base y beneficios pro (3)'!$E$21 -> 0 | I15: =+'Línea Base y beneficios pro (3)'!$E$21 -> 0 | J15: =+'Línea Base y beneficios pro (3)'!$E$21 -> 0 | K15: =+'Línea Base y beneficios pro (3)'!$E$21 -> 0 | L15: =+'Línea Base y beneficios pro (3)'!$E$21 -> 0 | M15: =+'Línea Base y beneficios pro (3)'!$E$21 -> 0 | N15: =+'Línea Base y beneficios pro (3)'!$E$21 -> 0 | O15: =+'Línea Base y beneficios pro (3)'!$E$21 -> 0 | P15: =+'Línea Base y beneficios pro (3)'!$E$21 -> 0 | Q15: =SUM(Tabla101519[[#This Row],[Mes 1]:[Mes 12]]) -> 0 | R15: =AVERAGE(Tabla101519[[#This Row],[Mes 1]:[Mes 12]]) -> 0
D16: Resultado consumo o generación | Q16: =SUM(Tabla101519[[#This Row],[Mes 1]:[Mes 12]]) -> 0 | R16: =AVERAGE(Tabla101519[[#This Row],[Mes 1]:[Mes 12]]) -> 
D18: Resultados concluyentes del proyecto
D20: % de cumplimiento promedio meta | E20: % de mejoramiento promedio
D21: =R16*100/R15 ->  | E21: =R16*100/'Línea Base y beneficios pro (3)'!R15 -> 
D23: Economico | E23: Mes 1 | F23: Mes 2 | G23: Mes 3 | H23: Mes 4 | I23: Mes 5 | J23: Mes 6 | K23: Mes 7 | L23: Mes 8 | M23: Mes 9 | N23: Mes 10 | O23: Mes 11 | P23: Mes 12 | Q23: Total | R23: Promedio
D24: Meta | E24: =+'Línea Base y beneficios pro (3)'!$E$22 -> 0 | F24: =+'Línea Base y beneficios pro (3)'!$E$22 -> 0 | G24: =+'Línea Base y beneficios pro (3)'!$E$22 -> 0 | H24: =+'Línea Base y beneficios pro (3)'!$E$22 -> 0 | I24: =+'Línea Base y beneficios pro (3)'!$E$22 -> 0 | J24: =+'Línea Base y beneficios pro (3)'!$E$22 -> 0 | K24: =+'Línea Base y beneficios pro (3)'!$E$22 -> 0 | L24: =+'Línea Base y beneficios pro (3)'!$E$22 -> 0 | M24: =+'Línea Base y beneficios pro (3)'!$E$22 -> 0 | N24: =+'Línea Base y beneficios pro (3)'!$E$22 -> 0 | O24: =+'Línea Base y beneficios pro (3)'!$E$22 -> 0 | P24: =+'Línea Base y beneficios pro (3)'!$E$22 -> 0 | Q24: =SUM(Tabla4796131418[[#This Row],[Mes 1]:[Mes 12]]) -> 0 | R24: =AVERAGE(Tabla4796131418[[#This Row],[Mes 1]:[Mes 12]]) -> 0
D25: Beneficio obtenido | E25: 0 | F25: 0 | G25: 0 | H25: 0 | I25: 0 | J25: 0 | K25: 0 | L25: 0 | M25: 0 | N25: 0 | O25: 0 | P25: 0 | Q25: =SUM(Tabla4796131418[[#This Row],[Mes 1]:[Mes 12]]) -> 0 | R25: =AVERAGE(Tabla4796131418[[#This Row],[Mes 1]:[Mes 12]]) -> 0
D32: EVIDENCIAS DE IMPLEMENTACIÓN
V69: OBSERVACIONES TUTOR
